[Event "WALTON BAN-chT 2019"]
[Site "Bangladesh"]
[Date "2019.12.15"]
[Round "1.12"]
[White "Rakesh Kumar Jena"]
[Black "Mollah Abdullah, Al Rakib"]
[Result "1/2-1/2"]
[ECO "A47"]
[WhiteElo "2335"]
[BlackElo "2461"]
[Annotator "ChessBase"]
[PlyCount "85"]
[EventDate "2019.12.07"]
[EventType "team-tourn"]
[EventCountry "BAN"]
[SourceTitle "playchess.com"]
[Source "ChessBase"]
[SourceQuality "1"]
[TimeControl "5400+30"]

1. d4 {[%emt 0:00:00]} Nf6 {[%emt 0:00:00]} 2. Nf3 {[%emt 0:00:00]} e6 {[%emt 0:00:00]} 3. Bf4 {[%emt 0:00:00]} b6 {[%emt 0:00:25]} 4. e3 {[%emt 0:00:07]} Bb7 {[%emt 0:00:19]} 5. Bd3 {[%emt 0:00:11]} Be7 {[%emt 0:01:16]} 6. h3 {[%emt 0:00:08]} O-O {[%emt 0:03:09]} 7. O-O {[%emt 0:00:07]} d6 {[%emt 0:03:01]} 8. Nbd2 {[%emt 0:00:22]} Nbd7 {[%emt 0:01:34]} 9. Bh2 {[%emt 0:00:22]} Re8 {[%emt 0:01:06]} 10. e4 {[%emt 0:08:01]} Bf8 {[%emt 0:16:35]} 11. Qe2 {[%emt 0:16:50]} e5 {[%emt 0:06:24]} 12. dxe5 {[%emt 0:07:20]} Nxe5 {[%emt 0:04:59]} 13. Nxe5 {[%emt 0:00:18]} dxe5 {[%emt 0:00:03]} 14. Rad1 {[%emt 0:06:53]} a6 {[%emt 0:09:55]} 15. Nc4 {[%emt 0:22:35]} Nd7 {[%emt 0:06:06]} 16. f4 {[%emt 0:13:03]} exf4 {[%emt 0:04:21]} 17. Rxf4 {[%emt 0:20:47]} Nc5 {[%emt 0:04:33]} 18. e5 {[%emt 0:00:52]} Nxd3 {[%emt 0:00:44]} 19. Rxd3 {[%emt 0:00:11]} Qe7 {[%emt 0:01:31]} 20. Ne3 {[%emt 0:01:06]} Rad8 {[%emt 0:01:47]} 21. Rc3 {[%emt 0:00:42]} Rd7 {[%emt 0:02:16]} 22. Nf5 {[%emt 0:00:32]} Qe6 {[%emt 0:03:44]} 23. Rf1 {[%emt 0:00:21]} f6 {[%emt 0:07:40]} 24. Qg4 {[%emt 0:00:35]} Rd2 {[%emt 0:06:28]} 25. Rg3 {[%emt 0:00:34]} fxe5 {[%emt 0:02:01]} 26. Qg5 {[%emt 0:00:29]} Rd7 {[%emt 0:02:32]} 27. Kh1 {[%emt 0:00:01]} Be4 {[%emt 0:05:25]} 28. Re3 {[%emt 0:00:42]} Bxf5 {[%emt 0:03:03]} 29. Rxe5 {[%emt 0:00:06]} Qg6 {[%emt 0:01:01]} 30. Qxf5 {[%emt 0:00:21]} Qxf5 {[%emt 0:01:08]} 31. Rexf5 {[%emt 0:00:04]} Rd2 {[%emt 0:00:37]} 32. Bxc7 {[%emt 0:00:58]} Rxc2 {[%emt 0:00:03]} 33. Bxb6 {[%emt 0:00:58]} Rxb2 {[%emt 0:00:04]} 34. Bc5 {[%emt 0:00:05]} Bxc5 {[%emt 0:00:23]} 35. Rxc5 {[%emt 0:00:01]} Rxa2 {[%emt 0:00:50]} 36. Rc7 {[%emt 0:00:03]} Rf8 {[%emt 0:00:40]} 37. Rd1 {[%emt 0:00:20]} Raf2 {[%emt 0:00:17]} 38. Rd6 {[%emt 0:02:05]} R2f6 {[%emt 0:00:14]} 39. Rd5 {[%emt 0:00:25]} R6f7 {[%emt 0:00:21]} 40. Rc6 {[%emt 0:00:22]} Ra7 {[%emt 0:01:43]} 41. Ra5 {[%emt 0:00:07]} Rf6 {[%emt 0:00:08]} 42. Rxf6 {[%emt 0:00:10]} gxf6 {[%emt 0:00:01]} 43. g4 {[%emt 0:00:01]} 1/2-1/2

[Event "WALTON BAN-chT 2019"]
[Site "Bangladesh"]
[Date "2019.12.15"]
[Round "3.10"]
[White "Ahmed, Sheikh Nasir"]
[Black "Chatterjee, Debaraj"]
[Result "1-0"]
[ECO "B81"]
[WhiteElo "2187"]
[BlackElo "2216"]
[Annotator "NA RC"]
[PlyCount "31"]
[EventDate "2019.12.07"]
[EventType "team-tourn"]
[EventCountry "BAN"]
[SourceTitle "playchess.com"]
[Source "ChessBase"]
[SourceQuality "1"]
[TimeControl "5400+30"]

1. e4 {[%emt 0:00:00]} c5 {[%emt 0:00:00]} 2. Nf3 {[%emt 0:00:22]} d6 {[%emt 0:00:30]} 3. d4 {[%emt 0:00:30]} cxd4 {[%emt 0:00:30]} 4. Nxd4 {[%emt 0:00:30]} Nf6 {[%emt 0:00:30]} 5. Nc3 {[%emt 0:00:30]} a6 {[%emt 0:00:30]} 6. h3 {[%emt 0:00:30]} e6 {[%emt 0:00:30]} 7. g4 {[%emt 0:00:30]} Be7 {[%emt 0:00:30]} 8. g5 {[%emt 0:00:30]} Nfd7 {[%emt 0:00:30]} 9. h4 {[%emt 0:00:30]} Nc6 {[%emt 0:00:30]} 10. Be3 {[%emt 0:00:30]} O-O {[%emt 0:00:30]} 11. Qd2 {[%emt 0:00:30]} Nde5 {[%emt 0:00:30]} 12. O-O-O {[%emt 0:00:30]} Nxd4 {[%emt 0:00:30]} 13. Qxd4 {[%emt 0:00:30]} Ng4 {[%emt 0:00:30]} 14. Rg1 {[%emt 0:00:30]} Nxe3 {[%emt 0:00:30]} 15. Qxe3 {[%emt 0:00:30]} Qa5 {[%emt 0:00:30]} 16. Kb1 {[%emt 0:00:30]} 1-0

[Event "WALTON BAN-chT 2019"]
[Site "Bangladesh"]
[Date "2019.12.15"]
[Round "4.7"]
[White "Islam, Khandaker Aminul"]
[Black "Mollah Abdullah, Al Rakib"]
[Result "0-1"]
[ECO "A45"]
[WhiteElo "2206"]
[BlackElo "2461"]
[Annotator "RC"]
[PlyCount "64"]
[EventDate "2019.12.07"]
[EventType "team-tourn"]
[EventCountry "BAN"]
[SourceTitle "playchess.com"]
[Source "ChessBase"]
[SourceQuality "1"]
[TimeControl "5400+30"]

1. d4 {[%emt 0:00:00]} Nf6 {[%emt 0:02:12]} 2. Bf4 {[%emt 0:00:00]} e6 {[%emt 1:28:48]} 3. e3 {[%emt 0:00:00]} b6 {[%emt 0:00:00]} 4. Qf3 {[%emt 0:00:00]} Nc6 {[%emt 0:00:00]} 5. Nc3 {[%emt 0:00:15]} Bb4 {[%emt 0:00:00]} 6. Nge2 {[%emt 0:01:08]} Nd5 {[%emt 0:00:00]} 7. a3 {[%emt 1:32:07]} Nxf4 {[%emt 0:00:00]} 8. Nxf4 {[%emt 0:00:00]} Bxc3+ {[%emt 0:00:00]} 9. bxc3 {[%emt 0:00:00]} Bb7 {[%emt 0:00:00]} 10. Bd3 {[%emt 0:00:00]} Qe7 {[%emt 0:00:00]} 11. Qg3 {[%emt 0:00:00]} O-O-O {[%emt 0:00:00]} 12. Qxg7 {[%emt 0:00:00]} h5 {[%emt 0:00:00]} 13. Qg3 {[%emt 0:00:00]} Rdg8 {[%emt 0:00:00]} 14. Qh3 {[%emt 0:00:00]} f5 {[%emt 0:00:00]} 15. Rg1 {[%emt 0:00:00]} Nd8 {[%emt 0:00:00]} 16. Ne2 {[%emt 0:00:00]} Nf7 {[%emt 0:00:00]} 17. f4 {[%emt 0:00:00]} h4 {[%emt 0:00:00]} 18. c4 {[%emt 0:00:00]} Nh6 {[%emt 0:00:00]} 19. Nc3 {[%emt 0:00:00]} Ng4 {[%emt 0:00:00]} 20. Nd1 {[%emt 0:00:00]} Kb8 {[%emt 0:00:00]} 21. Kd2 {[%emt 0:00:16]} Qg7 {[%emt 0:00:00]} 22. Rb1 {[%emt 0:01:52]} Nf6 {[%emt 0:00:00]} 23. d5 {[%emt 0:01:46]} exd5 {[%emt 0:00:00]} 24. cxd5 {[%emt 0:02:35]} Bxd5 {[%emt 0:00:00]} 25. Qxf5 {[%emt 0:02:31]} Rh5 {[%emt 0:00:00]} 26. Qh3 {[%emt 0:00:00]} Bxg2 {[%emt 0:00:06]} 27. Nf2 {[%emt 0:00:00]} Bxh3 {[%emt 0:01:06]} 28. Rxg7 {[%emt 0:00:00]} Rxg7 {[%emt 0:00:02]} 29. Nxh3 {[%emt 0:00:00]} Rg2+ {[%emt 0:00:17]} 30. Kc3 {[%emt 0:00:14]} Nd5+ {[%emt 0:01:27]} 31. Kd4 {[%emt 0:00:23]} c5+ {[%emt 0:00:20]} 32. Ke4 {[%emt 0:00:27]} Rxh2 {[%emt 0:11:42] Kd4} 0-1

[Event "WALTON BAN-chT 2019"]
[Site "Bangladesh"]
[Date "2019.12.15"]
[Round "4.8"]
[White "Rahman, Ziaur"]
[Black "Abu Sufian, Shakil"]
[Result "1-0"]
[ECO "D06"]
[WhiteElo "2440"]
[BlackElo "2256"]
[Annotator "NA RC"]
[PlyCount "55"]
[EventDate "2019.12.07"]
[EventType "team-tourn"]
[EventCountry "BAN"]
[SourceTitle "playchess.com"]
[Source "ChessBase"]
[SourceQuality "1"]
[TimeControl "5400+30"]

1. d4 {[%emt 0:00:06]} d5 {[%emt 0:00:00]} 2. Bg5 {[%emt 0:00:51]} h6 {[%emt 0:00:47]} 3. Bh4 {[%emt 0:00:06]} c6 {[%emt 0:01:26]} 4. Nf3 {[%emt 0:00:17]} Qb6 {[%emt 0:00:23]} 5. Qc1 {[%emt 0:01:08]} Bf5 {[%emt 0:01:12]} 6. e3 {[%emt 0:00:26]} Nd7 {[%emt 0:01:54]} 7. c4 {[%emt 0:02:09]} e6 {[%emt 0:01:08]} 8. Nc3 {[%emt 0:00:33]} Ngf6 {[%emt 0:04:37]} 9. Be2 {[%emt 0:03:54]} Be7 {[%emt 0:02:21]} 10. O-O {[%emt 0:00:13]} Qd8 {[%emt 0:04:37]} 11. Qd1 {[%emt 0:09:37]} g5 {[%emt 0:12:25]} 12. Bg3 {[%emt 0:00:20]} Nh5 {[%emt 0:00:21]} 13. Be5 {[%emt 0:03:27]} Nxe5 {[%emt 0:01:00]} 14. Nxe5 {[%emt 0:04:00]} Nf6 {[%emt 0:01:55]} 15. cxd5 {[%emt 0:00:59]} exd5 {[%emt 0:07:09]} 16. Bd3 {[%emt 0:01:46]} Qc8 {[%emt 0:08:35]} 17. Rc1 {[%emt 0:01:19]} O-O {[%emt 0:05:51]} 18. Ne2 {[%emt 0:02:03]} Ne4 {[%emt 0:03:48]} 19. f3 {[%emt 0:02:53]} Nd6 {[%emt 0:00:26]} 20. Ng3 {[%emt 0:01:49]} Bxd3 {[%emt 0:02:23]} 21. Qxd3 {[%emt 0:00:59]} f5 {[%emt 0:01:27]} 22. e4 {[%emt 0:03:45]} dxe4 {[%emt 0:03:43]} 23. fxe4 {[%emt 0:02:39]} f4 {[%emt 0:00:02]} 24. Ng6 {[%emt 0:03:45]} Re8 {[%emt 0:04:49]} 25. e5 {[%emt 0:01:31]} fxg3 {[%emt 0:00:24]} 26. Qb3+ {[%emt 0:03:07]} Kh7 {[%emt 0:04:48]} 27. exd6 {[%emt 0:01:17]} gxh2+ {[%emt 0:00:04]} 28. Kh1 {[%emt 0:00:21]} 1-0

[Event "WALTON BAN-chT 2019"]
[Site "Bangladesh"]
[Date "2019.12.15"]
[Round "4.12"]
[White "Sonkalan Bharati"]
[Black "Anata, Choudhury"]
[Result "1/2-1/2"]
[ECO "B87"]
[WhiteElo "2133"]
[BlackElo "2137"]
[Annotator "NA RC"]
[PlyCount "42"]
[EventDate "2019.12.07"]
[EventType "team-tourn"]
[EventCountry "BAN"]
[SourceTitle "playchess.com"]
[Source "ChessBase"]
[SourceQuality "1"]
[TimeControl "5400+30"]

1. e4 {[%emt 1:30:30]} c5 {[%emt 1:30:30]} 2. Nf3 {[%emt 0:00:30]} d6 {[%emt 0:00:30]} 3. d4 {[%emt 0:00:30]} cxd4 {[%emt 0:00:30]} 4. Nxd4 {[%emt 0:00:30]} Nf6 {[%emt 0:00:30]} 5. Nc3 {[%emt 0:00:30]} a6 {[%emt 0:00:30]} 6. Bc4 {[%emt 0:00:30]} e6 {[%emt 0:00:30]} 7. Bb3 {[%emt 0:00:30]} b5 {[%emt 0:00:30]} 8. O-O {[%emt 0:00:30]} Be7 {[%emt 0:00:30]} 9. f4 {[%emt 0:00:30]} Bb7 {[%emt 0:00:30]} 10. Be3 {[%emt 0:00:30]} b4 {[%emt 0:00:30]} 11. Na4 {[%emt 0:00:30]} Bxe4 {[%emt 0:00:30]} 12. f5 {[%emt 0:00:30]} e5 {[%emt 0:00:30]} 13. Bxf7+ {[%emt 0:00:30]} Kxf7 {[%emt 0:00:30]} 14. Ne6 {[%emt 0:00:30]} Qd7 {[%emt 0:00:30]} 15. Ng5+ {[%emt 0:00:30]} Ke8 {[%emt 0:00:30]} 16. Nb6 {[%emt 0:00:30]} Qb7 {[%emt 0:00:30]} 17. Ne6 {[%emt 0:00:30]} Kf7 {[%emt 0:00:30]} 18. Ng5+ {[%emt 0:00:30]} Ke8 {[%emt 0:00:30]} 19. Ne6 {[%emt 0:00:30]} Kf7 {[%emt 0:00:30]} 20. Ng5+ {[%emt 0:00:30]} Ke8 {[%emt 0:00:30]} 21. Ne6 {[%emt 0:00:30]} Kf7 {[%emt 0:00:30]} 1/2-1/2

[Event "WALTON BAN-chT 2019"]
[Site "Bangladesh"]
[Date "2019.12.15"]
[Round "5.2"]
[White "Mchedlishvili, Mikheil"]
[Black "Pranav, Shetty"]
[Result "1-0"]
[ECO "E71"]
[WhiteElo "2567"]
[BlackElo "2162"]
[Annotator "RC"]
[PlyCount "71"]
[EventDate "2019.12.07"]
[EventType "team-tourn"]
[EventCountry "BAN"]
[SourceTitle "playchess.com"]
[Source "ChessBase"]
[SourceQuality "1"]
[TimeControl "5400+30"]

1. d4 {[%emt 0:00:00]} Nf6 {[%emt 0:02:39]} 2. c4 {[%emt 0:00:00]} g6 {[%emt 0:00:11]} 3. Nc3 {[%emt 0:00:30]} Bg7 {[%emt 0:00:11]} 4. e4 {[%emt 0:00:29]} d6 {[%emt 0:00:06]} 5. h3 {[%emt 0:00:39]} O-O {[%emt 0:00:18]} 6. Be3 {[%emt 0:00:34]} e5 {[%emt 0:00:33]} 7. d5 {[%emt 0:00:40]} Na6 {[%emt 0:00:20]} 8. g4 {[%emt 0:03:31]} Nc5 {[%emt 0:00:23]} 9. f3 {[%emt 0:03:28]} a5 {[%emt 0:00:46]} 10. Qd2 {[%emt 0:00:56]} c6 {[%emt 0:05:45]} 11. dxc6 {[%emt 0:10:53]} bxc6 {[%emt 0:01:44]} 12. O-O-O {[%emt 0:00:38]} Ne6 {[%emt 0:42:57]} 13. Qxd6 {[%emt 0:01:12]} Qe8 {[%emt 0:06:07]} 14. c5 {[%emt 0:03:46]} Bb7 {[%emt 0:01:41]} 15. Qd2 {[%emt 0:09:38]} Qe7 {[%emt 0:03:21]} 16. Na4 {[%emt 0:04:29]} Rfd8 {[%emt 0:00:29]} 17. Qc3 {[%emt 0:02:46]} Rd4 {[%emt 0:16:10]} 18. Bxd4 {[%emt 0:08:54]} exd4 {[%emt 0:00:34]} 19. Qa3 {[%emt 0:10:01]} Nd7 {[%emt 0:04:03]} 20. Kb1 {[%emt 0:01:05]} Nexc5 {[%emt 0:03:02]} 21. Ne2 {[%emt 0:07:52]} d3 {[%emt 0:02:20]} 22. Rxd3 {[%emt 0:05:32]} Qe5 {[%emt 0:00:29]} 23. Rd2 {[%emt 0:07:27]} Rb8 {[%emt 0:05:09]} 24. Nxc5 {[%emt 0:08:19]} Nxc5 {[%emt 0:00:10]} 25. Qe3 {[%emt 0:00:45]} Ba6 {[%emt 0:01:42]} 26. Nd4 {[%emt 0:00:33]} Bxf1 {[%emt 0:01:10]} 27. Rxf1 {[%emt 0:00:08]} Rb4 {[%emt 0:00:09]} 28. Nb3 {[%emt 0:01:06]} Ne6 {[%emt 0:00:29]} 29. f4 {[%emt 0:01:40]} Qb5 {[%emt 0:00:59]} 30. Qe2 {[%emt 0:00:58]} Rxe4 {[%emt 0:00:31]} 31. Qxb5 {[%emt 0:00:05]} cxb5 {[%emt 0:00:02]} 32. f5 {[%emt 0:01:00]} Nd4 {[%emt 0:00:55]} 33. f6 {[%emt 0:01:24]} Bxf6 {[%emt 0:00:33]} 34. Rxf6 {[%emt 0:00:35]} Re1+ {[%emt 0:00:14]} 35. Nc1 {[%emt 0:00:07]} Kg7 {[%emt 0:00:15]} 36. Rff2 {[%emt 0:00:26]} 1-0

[Event "WALTON BAN-chT 2019"]
[Site "Bangladesh"]
[Date "2019.12.15"]
[Round "5.4"]
[White "Mohammed Abdul, Malek"]
[Black "Hossain, Showkat Pollab"]
[Result "1-0"]
[ECO "D00"]
[WhiteElo "2162"]
[BlackElo "2088"]
[Annotator "RC"]
[PlyCount "113"]
[EventDate "2019.12.07"]
[EventType "team-tourn"]
[EventCountry "BAN"]
[SourceTitle "playchess.com"]
[Source "ChessBase"]
[SourceQuality "1"]
[TimeControl "5400+30"]

1. d4 {[%emt 0:00:00]} Nf6 {[%emt 0:04:25]} 2. Bf4 {[%emt 0:00:00]} e6 {[%emt 0:00:44]} 3. e3 {[%emt 0:00:08]} Be7 {[%emt 0:03:08]} 4. Nd2 {[%emt 0:00:23]} d5 {[%emt 0:00:34]} 5. Bd3 {[%emt 0:00:14]} Nbd7 {[%emt 0:00:36]} 6. h3 {[%emt 0:00:17]} c5 {[%emt 0:00:32]} 7. c3 {[%emt 0:00:10]} Qb6 {[%emt 0:01:25]} 8. Rb1 {[%emt 0:00:24]} Bd6 {[%emt 0:01:18]} 9. Bxd6 {[%emt 0:14:32]} Qxd6 {[%emt 0:00:23]} 10. f4 {[%emt 0:03:45]} b6 {[%emt 0:07:58]} 11. Ngf3 {[%emt 0:00:41]} Bb7 {[%emt 0:01:26]} 12. O-O {[%emt 0:00:36]} Ng8 {[%emt 0:10:53]} 13. Ne5 {[%emt 0:01:08]} Ne7 {[%emt 0:08:20]} 14. Qg4 {[%emt 0:03:19]} O-O {[%emt 0:02:15]} 15. Rbd1 {[%emt 0:04:10]} f6 {[%emt 0:03:28]} 16. Ndf3 {[%emt 0:12:36]} Nf5 {[%emt 0:05:20]} 17. Nxd7 {[%emt 0:03:40]} Qxd7 {[%emt 0:00:06]} 18. Rde1 {[%emt 0:01:54]} Rae8 {[%emt 0:05:03]} 19. Nh4 {[%emt 0:12:12]} Nxh4 {[%emt 0:05:02]} 20. Qxh4 {[%emt 0:00:02]} g6 {[%emt 0:01:39]} 21. Qg3 {[%emt 0:04:20]} Kh8 {[%emt 0:03:31]} 22. Rf3 {[%emt 0:01:22]} Re7 {[%emt 0:01:50]} 23. h4 {[%emt 0:00:42]} Rg7 {[%emt 0:02:50]} 24. Qh2 {[%emt 0:02:02]} f5 {[%emt 0:01:26]} 25. Qg3 {[%emt 0:05:04]} Qe7 {[%emt 0:00:38]} 26. Qf2 {[%emt 0:00:35]} Rc8 {[%emt 0:02:18]} 27. Rh3 {[%emt 0:00:18]} Qf6 {[%emt 0:00:59]} 28. Kh2 {[%emt 0:00:44]} Bc6 {[%emt 0:00:53]} 29. Rg1 {[%emt 0:01:13]} h5 {[%emt 0:00:11]} 30. Rf3 {[%emt 0:01:36]} Rcc7 {[%emt 0:00:32]} 31. Kh3 {[%emt 0:02:18]} Rg8 {[%emt 0:00:33]} 32. Rg3 {[%emt 0:01:33]} Rh7 {[%emt 0:00:16]} 33. Rg5 {[%emt 0:00:08]} Kg7 {[%emt 0:00:21]} 34. Qe2 {[%emt 0:00:24]} Kf7 {[%emt 0:01:36]} 35. Bb5 {[%emt 0:00:36]} Ba8 {[%emt 0:01:14]} 36. Rf1 {[%emt 0:00:32]} Qe7 {[%emt 0:01:01]} 37. Rf3 {[%emt 0:00:31]} Bb7 {[%emt 0:00:39]} 38. Rfg3 {[%emt 0:00:15]} Rhh8 {[%emt 0:00:57]} 39. Qd1 {[%emt 0:00:25]} Qd6 {[%emt 0:00:46]} 40. Be2 {[%emt 0:00:38]} Qf8 {[%emt 0:03:07]} 41. Qa4 {[%emt 0:01:50]} Qd6 {[%emt 0:02:57]} 42. Qxa7 {[%emt 0:01:02]} Qe7 {[%emt 0:02:44]} 43. Qxb6 {[%emt 0:01:08]} cxd4 {[%emt 0:00:30]} 44. Qxd4 {[%emt 0:01:13]} Rh6 {[%emt 0:00:27]} 45. a4 {[%emt 0:01:32]} Qc7 {[%emt 0:00:35]} 46. Kh2 {[%emt 0:04:31]} Bc6 {[%emt 0:01:04]} 47. Qc5 {[%emt 0:00:38]} Qb7 {[%emt 0:00:43]} 48. a5 {[%emt 0:00:54]} Rc8 {[%emt 0:00:42]} 49. Qd6 {[%emt 0:01:54]} Qb8 {[%emt 0:02:56]} 50. Qxb8 {[%emt 0:01:25]} Rxb8 {[%emt 0:00:01]} 51. b4 {[%emt 0:00:02]} Ba8 {[%emt 0:04:18]} 52. b5 {[%emt 0:00:27]} Rc8 {[%emt 0:00:12]} 53. Rxg6 {[%emt 0:02:01]} Rxg6 {[%emt 0:01:03]} 54. Bxh5 {[%emt 0:00:02]} Ke7 {[%emt 0:00:13]} 55. Rxg6 {[%emt 0:00:28]} Rxc3 {[%emt 0:00:26]} 56. Rg8 {[%emt 0:01:00]} Bb7 {[%emt 0:00:51]} 57. Rg7+ {[%emt 0:00:09]} 1-0

[Event "WALTON BAN-chT 2019"]
[Site "Bangladesh"]
[Date "2019.12.15"]
[Round "5.9"]
[White "Mehdi Hasan Parag"]
[Black "Zia, Tahsin Tajwar"]
[Result "1/2-1/2"]
[ECO "B11"]
[WhiteElo "2169"]
[BlackElo "2148"]
[Annotator "RC"]
[PlyCount "99"]
[EventDate "2019.12.07"]
[EventType "team-tourn"]
[EventCountry "BAN"]
[SourceTitle "playchess.com"]
[Source "ChessBase"]
[SourceQuality "1"]
[TimeControl "5400+30"]

1. e4 {[%emt 0:02:43]} c6 {[%emt 0:00:00]} 2. Nc3 {[%emt 0:00:11]} d5 {[%emt 0:00:00]} 3. Nf3 {[%emt 0:00:09]} dxe4 {[%emt 0:00:00]} 4. Nxe4 {[%emt 0:00:09]} Nf6 {[%emt 0:00:01]} 5. Qe2 {[%emt 0:00:04]} Bf5 {[%emt 0:00:42]} 6. Nxf6+ {[%emt 0:00:43]} gxf6 {[%emt 0:00:01]} 7. d3 {[%emt 0:02:25]} Nd7 {[%emt 0:00:05]} 8. g3 {[%emt 0:00:32]} Ne5 {[%emt 0:00:23]} 9. Nxe5 {[%emt 0:00:44]} Qa5+ {[%emt 0:00:07]} 10. Bd2 {[%emt 0:00:23]} Qxe5 {[%emt 0:00:06]} 11. Qxe5 {[%emt 0:00:08]} fxe5 {[%emt 0:00:01]} 12. Bg2 {[%emt 0:00:18]} f6 {[%emt 0:00:51]} 13. O-O {[%emt 0:01:37]} h5 {[%emt 0:01:35]} 14. h4 {[%emt 0:00:23]} Kf7 {[%emt 0:01:07]} 15. Rae1 {[%emt 0:00:51]} e6 {[%emt 0:01:27]} 16. f4 {[%emt 0:03:13]} Bd6 {[%emt 0:06:53]} 17. Kh2 {[%emt 0:04:55]} Rag8 {[%emt 0:01:57]} 18. fxe5 {[%emt 0:06:48]} Bxe5 {[%emt 0:00:24]} 19. Bf4 {[%emt 0:00:18]} Bxf4 {[%emt 0:03:16]} 20. Rxf4 {[%emt 0:00:14]} Rg4 {[%emt 0:02:48]} 21. Ref1 {[%emt 0:04:49]} Rhg8 {[%emt 0:13:10]} 22. Rxg4 {[%emt 0:00:37]} Bxg4 {[%emt 0:00:21]} 23. Rf4 {[%emt 0:00:26]} Rd8 {[%emt 0:00:37]} 24. Rb4 {[%emt 0:01:02]} Rd7 {[%emt 0:00:26]} 25. Kg1 {[%emt 0:02:41]} Bd1 {[%emt 0:09:28]} 26. Rc4 {[%emt 0:01:27]} f5 {[%emt 0:04:11]} 27. Kf2 {[%emt 0:03:24]} e5 {[%emt 0:03:05]} 28. a4 {[%emt 0:02:53]} Rd4 {[%emt 0:06:54]} 29. Rc5 {[%emt 0:04:00]} Rxa4 {[%emt 0:01:45]} 30. Rxe5 {[%emt 0:01:00]} Kf6 {[%emt 0:00:07]} 31. Rc5 {[%emt 0:01:06]} Ra2 {[%emt 0:01:10]} 32. Bh3 {[%emt 0:08:59]} Rxb2 {[%emt 0:10:01]} 33. Rxf5+ {[%emt 0:00:08]} Ke7 {[%emt 0:00:49]} 34. Ra5 {[%emt 0:10:29]} Bxc2 {[%emt 0:08:13]} 35. Ke3 {[%emt 0:00:59]} Rb3 {[%emt 0:06:47]} 36. Bf1 {[%emt 0:01:20]} Bd1 {[%emt 0:00:50]} 37. Rxa7 {[%emt 0:00:41]} Bg4 {[%emt 0:00:32]} 38. Be2 {[%emt 0:02:01]} Bxe2 {[%emt 0:03:50]} 39. Kxe2 {[%emt 0:00:04]} Kd6 {[%emt 0:01:13]} 40. Ra8 {[%emt 0:01:39]} Rb5 {[%emt 0:00:51]} 41. Ke3 {[%emt 0:01:01]} Rd5 {[%emt 0:01:30]} 42. d4 {[%emt 0:01:04]} b5 {[%emt 0:01:12]} 43. Rd8+ {[%emt 0:05:24]} Ke6 {[%emt 0:00:33]} 44. Rb8 {[%emt 0:00:54]} Rd7 {[%emt 0:02:30]} 45. Rh8 {[%emt 0:01:51]} Rd5 {[%emt 0:00:55]} 46. Rb8 {[%emt 0:02:33]} Kd6 {[%emt 0:01:10]} 47. Rd8+ {[%emt 0:01:07]} Ke7 {[%emt 0:01:30]} 48. Rb8 {[%emt 0:00:21]} Kd7 {[%emt 0:00:22]} 49. Rb7+ {[%emt 0:03:51]} Kd6 {[%emt 0:01:50]} 50. Ke4 {[%emt 0:20:21] Ke5+} 1/2-1/2

[Event "WALTON BAN-chT 2019"]
[Site "Bangladesh"]
[Date "2019.12.15"]
[Round "7.10"]
[White "Ahmed, Sheikh Nasir"]
[Black "Chowdhury, Sohel"]
[Result "1-0"]
[ECO "B12"]
[WhiteElo "2187"]
[BlackElo "2088"]
[Annotator "RC"]
[PlyCount "145"]
[EventDate "2019.12.07"]
[EventType "team-tourn"]
[EventCountry "BAN"]
[SourceTitle "playchess.com"]
[Source "ChessBase"]
[SourceQuality "1"]
[TimeControl "5400+30"]

1. e4 {[%emt 0:00:00]} c6 {[%emt 0:00:00]} 2. d4 {[%emt 0:00:00]} d5 {[%emt 0:00:08]} 3. e5 {[%emt 0:00:00]} Bf5 {[%emt 0:02:40]} 4. Nf3 {[%emt 0:00:13]} e6 {[%emt 0:00:33]} 5. Be2 {[%emt 0:00:28]} c5 {[%emt 0:00:59]} 6. Be3 {[%emt 0:00:31]} cxd4 {[%emt 0:00:02]} 7. Nxd4 {[%emt 0:00:10]} Ne7 {[%emt 0:00:12]} 8. O-O {[%emt 0:00:28]} Nbc6 {[%emt 0:01:50]} 9. Bb5 {[%emt 0:00:27]} a6 {[%emt 0:02:21]} 10. Bxc6+ {[%emt 0:00:06]} Nxc6 {[%emt 0:06:30]} 11. Nxf5 {[%emt 0:00:16]} exf5 {[%emt 0:00:02]} 12. c3 {[%emt 0:00:16]} Be7 {[%emt 0:04:15]} 13. Re1 {[%emt 0:01:23]} O-O {[%emt 0:01:42]} 14. Bd4 {[%emt 0:00:49]} Qd7 {[%emt 0:04:10]} 15. Qd3 {[%emt 0:00:38]} Rfe8 {[%emt 0:00:46]} 16. Nd2 {[%emt 0:00:12]} Bf8 {[%emt 0:00:37]} 17. Nf3 {[%emt 0:02:19]} g6 {[%emt 0:00:37]} 18. Nd2 {[%emt 0:18:49]} Rac8 {[%emt 0:06:59]} 19. Rad1 {[%emt 0:00:51]} Qc7 {[%emt 0:02:53]} 20. Nb3 {[%emt 0:07:48]} Nxe5 {[%emt 0:05:46]} 21. Bxe5 {[%emt 0:00:46]} Rxe5 {[%emt 0:00:20]} 22. Rxe5 {[%emt 0:00:03]} Qxe5 {[%emt 0:00:02]} 23. Qxd5 {[%emt 0:00:44]} Qe2 {[%emt 0:00:22]} 24. Qd2 {[%emt 0:01:29]} Re8 {[%emt 0:58:14]} 25. g3 {[%emt 0:00:55]} Bh6 {[%emt 0:00:00]} 26. Qxe2 {[%emt 0:10:30]} Rxe2 {[%emt 0:00:00]} 27. Rb1 {[%emt 0:00:06]} f4 {[%emt 0:00:00]} 28. Kf1 {[%emt 0:00:22]} Re7 {[%emt 0:00:00]} 29. g4 {[%emt 0:06:58]} Bg5 {[%emt 0:02:30]} 30. Rd1 {[%emt 0:01:31]} Kg7 {[%emt 0:00:00]} 31. Nd4 {[%emt 0:04:36]} Bf6 {[%emt 0:00:00]} 32. Nf3 {[%emt 0:00:38]} h6 {[%emt 0:00:00]} 33. Re1 {[%emt 0:07:34]} Rd7 {[%emt 0:00:00]} 34. Ke2 {[%emt 0:00:12]} g5 {[%emt 0:00:00]} 35. Rd1 {[%emt 0:00:27]} Re7+ {[%emt 0:00:00]} 36. Kd3 {[%emt 0:00:15]} b5 {[%emt 0:00:00]} 37. Rd2 {[%emt 0:04:10]} Re6 {[%emt 0:00:00]} 38. Re2 {[%emt 0:09:50]} Rd6+ {[%emt 0:00:00]} 39. Kc2 {[%emt 0:00:14]} Rc6 {[%emt 0:00:00]} 40. Re4 {[%emt 0:01:04]} Rd6 {[%emt 0:00:00]} 41. a4 {[%emt 0:00:31]} bxa4 {[%emt 0:00:00]} 42. Rxa4 {[%emt 0:00:16]} Re6 {[%emt 0:00:00]} 43. Kd3 {[%emt 0:01:51]} Rd6+ {[%emt 0:00:00]} 44. Nd4 {[%emt 0:01:09]} Kg6 {[%emt 0:00:00]} 45. Rc4 {[%emt 0:00:56]} Bxd4 {[%emt 0:00:00]} 46. Rxd4 {[%emt 0:00:41]} Rb6 {[%emt 0:00:00]} 47. b4 {[%emt 0:00:45]} f5 {[%emt 0:00:00]} 48. gxf5+ {[%emt 0:05:08]} Kxf5 {[%emt 0:00:00]} 49. h3 {[%emt 0:00:20]} Ke5 {[%emt 0:04:23]} 50. Rd8 {[%emt 0:02:53]} Kf5 {[%emt 0:01:58]} 51. Rd5+ {[%emt 0:00:19]} Kg6 {[%emt 0:01:05]} 52. Kc4 {[%emt 0:09:24]} Kh5 {[%emt 0:00:36]} 53. Kb3 {[%emt 0:00:09]} Kh4 {[%emt 0:00:50]} 54. Rd3 {[%emt 0:00:01]} g4 {[%emt 0:00:36]} 55. hxg4 {[%emt 0:04:59]} Kxg4 {[%emt 0:00:10]} 56. c4 {[%emt 0:00:00]} h5 {[%emt 0:00:12]} 57. c5 {[%emt 0:00:00]} Rb8 {[%emt 0:01:04]} 58. Kc4 {[%emt 0:00:00]} h4 {[%emt 0:00:24]} 59. Rd6 {[%emt 0:00:00]} Kf3 {[%emt 0:01:42]} 60. Rh6 {[%emt 0:00:00]} Kxf2 {[%emt 0:00:17]} 61. Rxh4 {[%emt 0:00:00]} Ke3 {[%emt 0:01:30]} 62. Rh6 {[%emt 0:00:00]} Ra8 {[%emt 0:00:44]} 63. c6 {[%emt 0:00:00]} f3 {[%emt 0:00:09]} 64. Re6+ {[%emt 0:00:00]} Kf4 {[%emt 0:00:19]} 65. Rf6+ {[%emt 0:00:00]} Ke3 {[%emt 0:00:24]} 66. Kc5 {[%emt 0:00:00]} f2 {[%emt 0:00:17]} 67. c7 {[%emt 0:00:00]} Ke2 {[%emt 0:00:31]} 68. Kb6 {[%emt 0:00:00]} f1=Q {[%emt 0:01:32]} 69. Rxf1 {[%emt 0:00:00]} Kxf1 {[%emt 0:00:08]} 70. Kb7 {[%emt 0:00:00]} Rf8 {[%emt 0:01:00]} 71. c8=Q {[%emt 0:00:00]} Rxc8 {[%emt 0:00:32]} 72. Kxc8 {[%emt 0:00:00]} Ke2 {[%emt 0:00:33]} 73. Kb7 {[%emt 0:00:00]} 1-0